Cogmind - Beta 13 @@@ ROGUE MODE // 2024.04.15 @ 03:32:38 Player: Exceptionally Mediocre Result: Destroyed by 41-ZZT(R) with Subdweller Machine Gun Performance ------------- Evolutions (0) 0 Regions Visited (2) 400 Robots Destroyed (28) 140 Value Destroyed (495) 495 Prototype IDs (0) 0 Alien Tech Used (0) 0 Bonus (0) 0 TOTAL SCORE: 1035 Bonus ------- None Cogmind --------- Core Integrity 0/250 Matter 193/300 Energy 94/250 System Corruption 0% Temperature Cool (0) Movement Rolling (135) Ox3 Location -10/Subcaves Parts ------- > --- POWER (1) -------- Ion Engine > --- PROPULSION (2) --- Wheel Compact Wheel > --- UTILITY (2) ------ Huge Storage Unit Sensor Array > --- WEAPON (2) ------- Particle Gun Light Cannon > --- INVENTORY (25) --- Ion Engine Light Ion Engine Light Ion Engine Wheel Heat Sink Improved Heat Sink High-capacity Matter Pod (200) Signal Interpreter Signal Interpreter Improved Terrain Scanner Hacking Suite Light Assault Rifle Light Assault Rifle Light Cannon Welding Torch Plasma Cutter Plasma Cutter Heavy Hammer Heavy Hammer Heavy Hammer Peak State ------------ > --- POWER ------------ Ion Engine > --- PROPULSION ------- Wheel Wheel > --- UTILITY ---------- Huge Storage Unit Improved Terrain Scanner > --- WEAPON ----------- Particle Gun Heavy Hammer > --- INVENTORY -------- Ion Engine Ion Engine Light Ion Engine Wheel Wheel Wheel Compact Wheel Heat Sink Improved Heat Sink High-capacity Matter Pod Sensor Array Signal Interpreter Signal Interpreter Hacking Suite Light Assault Rifle Light Assault Rifle Light Cannon Light Cannon Welding Torch Plasma Cutter Plasma Cutter Heavy Hammer Heavy Hammer [Rating: 14] Favorites ----------- Power Ion Engine Engine Ion Engine Propulsion Wheel Wheel Wheel Utility Improved Terrain Scanner Device Improved Terrain Scanner Storage Large Storage Unit Protection Light Armor Plating Weapon Light Cannon Energy Gun Medium Laser Ballistic Gun Light Assault Rifle Ballistic Cannon Light Cannon Impact Weapon Heavy Hammer Build | -11 -10 -10 ------- Run | Yrd Mat Sub Slots Evolved . | . . . Power . | . . . Propulsion . | . . . Utility . | . . . Weapon . | . . . Parts Attached 28 | 9 13 6 Power 5 | 1 3 1 Engine 5 | 1 3 1 Core . | . . . Reactor . | . . . Propulsion 9 | 3 3 3 Treads . | . . . Leg . | . . . Wheel 9 | 3 3 3 Hover . | . . . Flight . | . . . Utility 7 | 2 4 1 Device 3 | 1 1 1 Storage 3 | 1 2 . Processor . | . . . Hackware . | . . . Protection 1 | . 1 . Artifact . | . . . Weapon 7 | 3 3 1 Energy Gun 3 | 2 1 . Energy Cannon . | . . . Ballistic Gun 1 | 1 . . Ballistic Cannon 2 | . 1 1 Launcher . | . . . Special Weapon . | . . . Impact Weapon 1 | . 1 . Slashing Weapon . | . . . Piercing Weapon . | . . . Special Melee Weapon . | . . . Unidentified Prototypes . | . . . Parts Lost 12 | . 8 4 Power 3 | . 2 1 Propulsion 6 | . 3 3 Utility 1 | . 1 . Weapon 2 | . 2 . Highest Loss Streak 3 | . 3 3 To Critical Strikes . | . . . Average Slot Usage (%) 99 | . 99 97 Engine 13 | . 13 12 Wheel 27 | . 28 26 Device 13 | . 13 14 Storage 14 | . 14 14 Energy Gun 13 | . 13 14 Ballistic Gun 5 | . 6 . Ballistic Cannon 8 | . 7 12 Naked Turns . | . . . Heaviest Build 92 | 14 92 92 Greatest Support 32 | 32 26 20 Greatest Overweight (x) 4 | . 4 4 Average Overweight (x) 1 | . 2 4 Largest Inventory Capacity 25 | 8 25 25 Average Capacity 17 | 7 18 25 Most Carried 23 | 8 23 23 Average Carried 14 | 3 15 22 Final Capacity 25 | 8 25 25 Final Carried 23 | 8 23 20 Class Distribution -------------------- 52% | Mutant 47% | Scavenger-Mutant Dominant Class ---------------- Scavenger-Mutant | -10/Materials Scavenger-Mutant | -10/Subcaves Resources | -11 -10 -10 ----------- Run | Yrd Mat Sub Matter Collected 773 | 299 440 34 Remotely . | . . . Salvage Created 699 | 134 474 91 Parts 55 | 13 37 5 Haulers Intercepted 2 | . 2 . Recyclers Shooed 1 | . 1 . Parts Field Recycled . | . . . Retrieved Matter . | . . . Parts Self-Destructed 2 | . . 2 Prevented . | . . . Kills | -11 -10 -10 ------- Run | Yrd Mat Sub Combat Hostiles Destroyed 18 | . 13 5 Guns 13 | . 9 4 Cannons 5 | . 4 1 Classes Destroyed 9 | 2 6 1 Worker 2 | . 2 . Tunneler 2 | 2 . . Hauler 2 | . 2 . Recycler 1 | 1 . . Operator 1 | . 1 . Watcher 2 | . 2 . Swarmer 9 | . 6 3 Grunt 7 | . 7 . Subdweller 2 | . . 2 Best Kill Streak 6 | 3 6 3 Combat Bots Only 6 | . 6 3 Max Kills in Single Turn 1 | 1 1 1 Gunslinging . | . . . Exploded . | . . . Melee . | . . . Uniques/NPCs Destroyed . | . . . Combat | -11 -10 -10 -------- Run | Yrd Mat Sub Hostile Shots Fired 128 | . 80 48 Missed 27 | . 14 13 Damage Taken 1149 | . 728 421 Core 252 | . 152 100 Absorbed by Shields . | . . . Core Remaining (%) 100 | 100 . . Volleys Fired 98 | 9 67 22 Largest 2 | 2 2 2 Hottest 100 | 70 100 100 Shots Fired 193 | 18 132 43 Gun 139 | 18 100 21 Cannon 54 | . 32 22 Launcher . | . . . Special . | . . . Kinetic 98 | 9 67 22 Thermal 95 | 9 65 21 Explosive . | . . . Electromagnetic . | . . . Robot Hit Streak 10 | 6 10 8 Robot Miss Streak 3 | 2 3 3 Penetration Max . | . . . Secondary Targets 2 | . 2 . Max Gunslinging Chain 1 | . 1 . Shots Hit Robots 131 | 14 89 28 Core Hits 42 | 5 29 8 Critical Kills . | . . . Critical Parts Destroyed . | . . . Critical Strikes 3 | 1 2 . Burn 1 | 1 . . Blast 2 | . 2 . Melee Attacks 5 | . 5 . Impact 5 | . 5 . Slashing . | . . . Piercing . | . . . Sneak Attacks . | . . . Combat Hostiles . | . . . Follow-up Attacks . | . . . Damage Inflicted 1816 | 146 1191 479 Guns 1175 | 146 809 220 Cannons 637 | . 378 259 Explosions . | . . . Melee . | . . . Ramming 4 | . 4 . Kinetic 886 | 59 568 259 Thermal 926 | 87 619 220 Explosive . | . . . Electromagnetic . | . . . Impact . | . . . Slashing . | . . . Piercing . | . . . Highest Corruption . | . . . Average Corruption . | . . . Corruption Purged . | . . . Corruption Blocked . | . . . Overload Shots . | . . . Overflow Damage . | . . . Projectiles . | . . . Explosions . | . . . Melee . | . . . Knockbacks 4 | . 2 2 Impact . | . . . Kinetic 4 | . 2 2 Secondary . | . . . Self-Inflicted Damage 2 | . 2 . Shots . | . . . Rammed 1 | . 1 . Targets Rammed 1 | . 1 . Kicked . | . . . Crushed . | . . . Highest Temperature 310 | 50 310 . Average Temperature 102 | 23 110 . Received Heat Transfer 354 | . 318 36 Effects 3 | . 3 . Energy Bleed 3 | . 3 . Siege Activations . | . . . Robots Corrupted . | . . . Combat Hostiles . | . . . Parts Fried . | . . . Impact Corruptions . | . . . Robots Melted . | . . . Combat Hostiles . | . . . Parts Melted 4 | . 4 . Heat Transferred 2627 | 333 1739 555 Parts Sabotaged . | . . . Parts Stolen . | . . . Parts Stripped . | . . . Power Chain Reactions . | . . . Alert | -11 -10 -10 ------- Run | Yrd Mat Sub Peak Influence 238 | 15 238 . Initial 9 | . 9 . Average 99 | 5 115 . Maximum Alert Level 1 | . 1 . Low Security (%) 94 | 100 93 . Level 1 5 | . 6 . Level 2 . | . . . Level 3 . | . . . Level 4 . | . . . Level 5 . | . . . High Security . | . . . Max Security . | . . . Squads Dispatched 2 | . 2 . Investigation . | . . . Extermination . | . . . Reinforcement 2 | . 2 . Assault . | . . . Garrison . | . . . Intercept . | . . . Searches Triggered . | . . . Construction Impeded . | . . . Haulers Reinforced . | . . . Active Scanning Responses . | . . . Cargo Convoy Interrupts . | . . . Stealth | -11 -10 -10 --------- Run | Yrd Mat Sub Distress Signals 3 | . 3 . Communications Jammed . | . . . Distress Signals . | . . . Times Spotted 25 | . 18 7 Peak Tracking Total 5 | . 5 3 Tactical Retreats . | . . . Traps | -11 -10 -10 ------- Run | Yrd Mat Sub Traps Triggered . | . . . Indirectly . | . . . Trap Hack Attempts . | . . . Triggered . | . . . Disarmed . | . . . Reprogrammed . | . . . Reused . | . . . Traps Extracted . | . . . Installed . | . . . Triggered . | . . . Machines | -11 -10 -10 ---------- Run | Yrd Mat Sub Machines Disabled 2 | . 2 . Max in Single Turn 1 | . 1 . Machines Repaired . | . . . Machines Dismantled . | . . . Machines Sabotaged . | . . . Overloaded Fab Kills . | . . . Hacking | -11 -10 -10 --------- Run | Yrd Mat Sub Machines Accessed 2 | . 2 . Terminals 1 | . 1 . Fabricators . | . . . Repair Stations . | . . . Recycling Units 1 | . 1 . Scanalyzers . | . . . Garrison Access . | . . . Total Hacks 3 | . 3 . Successful 2 | . 2 . Failed 1 | . 1 . Catastrophic . | . . . Database Lockouts . | . . . Manual 1 | . 1 . Terminals 1 | . 1 . Fabricators . | . . . Repair Stations . | . . . Recycling Units 2 | . 2 . Scanalyzers . | . . . Garrison Access . | . . . Terminal Hacks . | . . . Fabricator Hacks . | . . . Repair Station Hacks . | . . . Recycling Unit Hacks 1 | . 1 . Retrieve Components 1 | . 1 . Scanalyzer . | . . . Garrison Access Hacks . | . . . Unauthorized Hacks 1 | . 1 . Terminals 1 | . 1 . Botnet 1 | . 1 . Fabricators . | . . . Repair Stations . | . . . Recycling Units . | . . . Scanalyzers . | . . . Garrison Access . | . . . Data Cores Recovered . | . . . Used . | . . . Hacking Detections 1 | . 1 . Full Trace Events . | . . . Feedback Events . | . . . Feedback Blocked . | . . . Robot Schematics Acquired . | . . . Robots Built . | . . . Authchips . | . . . Time . | . . . Total Robot Build Rating . | . . . Part Schematics Acquired . | . . . Parts Built . | . . . Authchips . | . . . Time . | . . . Total Part Build Rating . | . . . Parts Repaired . | . . . Time . | . . . Parts Recycled . | . . . Recycled Matter . | . . . Retrieved Matter . | . . . Retrieved Components . | . . . Parts Scanalyzed . | . . . Part Schematics Acquired . | . . . Parts Damaged . | . . . Bothacking | -11 -10 -10 ------------ Run | Yrd Mat Sub Used RIF Installer . | . . . Robots Hacked . | . . . Non-combat . | . . . Combat . | . . . Robot Hacks Applied . | . . . Relay Couplers Released . | . . . Fabnet Peak Effective % . | . . . Robots Rewired . | . . . Allies Hacked . | . . . Hacks Repelled . | . . . Allies | -11 -10 -10 -------- Run | Yrd Mat Sub Total Allies . | . . . Largest Group . | . . . Highest-Rated Group . | . . . Highest-Rated Ally . | . . . Total Orders . | . . . Ally Attacks . | . . . Total Damage . | . . . Kills . | . . . Allies Corrupted . | . . . Allies Melted . | . . . Intel | -11 -10 -10 ------- Run | Yrd Mat Sub Robot Analysis Total . | . . . Derelict Logs Recovered . | . . . Drone Launches . | . . . Drone Recoveries . | . . . Exploration | -11 -10 -10 ------------- Run | Yrd Mat Sub Turns Passed 1045 | 142 785 118 Spaces Moved 577 | 103 442 32 Core 3 | 3 . . Treads . | . . . Legs . | . . . Wheels 574 | 100 442 32 Hover . | . . . Flight . | . . . Fastest Speed 50 | 50 90 140 Average Speed 114 | 94 117 140 Slowest Speed 140 | 100 140 140 Overloaded Moves . | . . . Propulsion Burnouts . | . . . Robots Hopped . | . . . Cave-ins Triggered . | . . . Exploration Rate (%) 25 | 5 68 3 Regions Visited 2 Branch Regions 1 Pre-discovered Areas . | . . . Known Exits Taken . | . . . Unknown Exits Taken 2 | 1 1 . Scrap Searched . | . . . Spaces Dug . | . . . Terrain Destroyed . | . . . Melee . | . . . Projectile . | . . . AOE . | . . . Terrain Rammed . | . . . Walls Destroyed . | . . . Machines Disabled . | . . . Actions | -11 -10 -10 --------- Run | Yrd Mat Sub Total 764 | 127 574 63 Wait 21 | . 19 2 Move 575 | 102 441 32 Hop . | . . . Pick Up 32 | 7 24 1 Fast Attach 7 | 7 . . Attach 12 | . 8 4 Detach . | . . . Swap 9 | 2 5 2 Drop 4 | . 4 . Fire 98 | 9 67 22 Melee 5 | . 5 . Ram 1 | . 1 . Kick . | . . . Crush . | . . . Escape Stasis . | . . . Rewire . | . . . Trap . | . . . Miscellaneous . | . . . Route ------- -11/Scrapyard -10/Materials (discovered 2 exits: [*Min] / [*Sub]) -10/Subcaves History --------- Turn | Location | Event 8 | -11/Scrapyard | Discovered new exit (range 16) 143 | -11/Scrapyard | Entered Materials 348 | -10/Materials | Build established: Mutant 356 | -10/Materials | Lost 3 parts (1p2n) 542 | -10/Materials | Core integrity fell below 50% 578 | -10/Materials | Lost 3 parts (1p1n1w) 583 | -10/Materials | Discovered new exit (range 12) 830 | -10/Materials | Build established: Scavenger-Mutant 924 | -10/Materials | Discovered new exit (range 2) 928 | -10/Materials | Entered Subcaves 1032 | -10/Subcaves | Core integrity fell below 20% 1046 | -10/Subcaves | Destroyed by 41-ZZT(R) with Subdweller Machine Gun Last Messages --------------- 00951_ Destroyed Flight Unit. 00959_ S-10 Pest knocked back. 00962_ S-10 Pest destroyed. 00971_ Flight Unit fries itself beyond repair. 00971_ Acquired 3 matter. 00972_ Subatomizers dissect the Flight Unit. 00974_ Acquired 17 matter. 00977_ Acquired Lgt. Ion Engine. 00979_ Acquired 10 matter. 00980_ Flight Unit fries itself beyond repair. 00988_ Acquired 4 matter. 01006_ 9F-E0Z(R) destroyed. 01010_ Subatomizers dissect the Sub. Optics. 01015_ 0K-63H(R) affixes Scrap Shield Fragment to Scrap Shield. 01016_ 0K-63H(R) destroyed. 01022_ Subatomizers dissect the Sub. Optics. 01024_ Ion Engine destroyed. 01033_ Subatomizers dissect the Sub. Optics. 01035_ Wheel destroyed. Map ----- +----------------------------------------------------+ | ???????????????????????????????????????????????? | | ???????????????????????????????????????????????? | | ???????????????????????????????????????????????? | | ???????????????????????????????????????????????? | | ???????????????????????????????????????????????? | | ???????????????????????????????????????????????? | | ???????????????????????????????????????????????? | | ???????????????????????????????????????????????? | | ???????????????????????????????????????????????? | | ???????????????????????????????????????????????? | | ???????????????????????????????????????????????? | | ???????????????????????????????????????????????? | | ???????????????????????????????????????????????? | | ???????????????????????????????"???????????????? | | ??????????????????????????????? ???????????????? | | ?????????????????????????????? #???????????????? | | ?????????????????????????????? #???????????????? | | ????????????????????????????? %##??????????????? | | ????????????????????????????? R%##?????????????? | | ???????????????????????????? % %??????????????? | | ???????####?#######????????#R #???????????????? | | ###???## ### #???????#%! #???????????????? | | ##?## #?????##!%= #???????????????? | | ### #??????### #???????????????? | | ## #???????# #????????????????? | | ##?????## @ #??????????????????? | | # ####### #####??????????????????? | | #### #??????????????????????? | | ## #??## #??????????????????????? | | ?## ##???# # ### ##??????????????????????? | | ??# ##????#### ##?###???????????????????????? | | ??####????????# #????????????????????????????? | | ??????????????#####????????????????????????????? | | ???????????????????????????????????????????????? | | ???????????????????????????????????????????????? | | ???????????????????????????????????????????????? | | ???????????????????????????????????????????????? | | ???????????????????????????????????????????????? | | ???????????????????????????????????????????????? | | ???????????????????????????????????????????????? | | ???????????????????????????????????????????????? | | ???????????????????????????????????????????????? | | ???????????????????????????????????????????????? | | ???????????????????????????????????????????????? | | ???????????????????????????????????????????????? | | ???????????????????????????????????????????????? | | ???????????????????????????????????????????????? | | | | | | | +----------------------------------------------------+ Best States ------------- Heat Dissipation 25 Energy Generation 10 Energy Capacity 250 Matter Stores 300 Matter Capacity 300 Sight Range 16 Robot Scan Range 14 Terrain Scan Range 16 Terrain Scan Density 10 Armor Coverage 150 Evasion (%) 42 Item Schematics ----------------- None Robot Schematics ------------------ None Fabricated ------------ Nothing Alien Tech Used ----------------- None Achievements -------------- None Challenges ------------ None Game ------ Seed WardroneHeavyDoomcannon Manual? 0 Play Time 00:11:43 Cumulative 57.8 hours Start 2024.04.15 @ 03:19:55 End 2024.04.15 @ 03:32:38 Sessions 1 Manual Loads 0 Difficulty Rogue Special Mode None Game No. 66 Rogue 66 Adventurer 0 Explorer 0 Win Type - Total 0 Types 0/0/0/0/0/0/0/0/0 Lore% 17 Gallery% 39 Achievement% 29 Wizard Run 0 Options --------- Layout 1 ASCII 0 Keyboard 1 Movement Vi Keybinds 0 Fullscreen 1 Font 24/Smallcaps Map View 50x35 Zoom Use 0% Tactical HUD 1 Map Filters NONE Filters NONE Steam 1 RUN: ed8d7720-dead-481e-9b93-05d65b4fa0ad